[Event "Early Titled Tuesday Blitz | February 8 2022"]
[White "Aditya Mittal"]
[Black "Chernomordik, Pavel"]
[WhiteFideId "35042025"]
[BlackFideId "2804530"]
[WhiteElo "2287"]
[BlackElo "2249"]
[Result "0-1"]
[Round "03"]
[TimeControl "180+1"]
[Date "2022.02.08"]
[WhiteClock "0:00:01"]
[BlackClock "0:00:17"]

1. d4 {[%clk 0:03:00]}  g6 {[%clk 0:02:59]} 2. c4 {[%clk 0:03:01]}  Bg7 {[%clk 0:02:58]} 3. e4 {[%clk 0:03:02]}  Nc6 {[%clk 0:02:57]} 4. Nf3 {[%clk 0:03:00]}  d6 {[%clk 0:02:56]} 5. d5 {[%clk 0:02:59]}  Ne5 {[%clk 0:02:56]} 6. Nxe5 {[%clk 0:02:59]}  Bxe5 {[%clk 0:02:55]} 7. Nc3 {[%clk 0:02:59]}  c6 {[%clk 0:02:55]} 8. Bd3 {[%clk 0:02:59]}  Nf6 {[%clk 0:02:52]} 9. O-O {[%clk 0:02:53]}  O-O {[%clk 0:02:51]} 10. h3 {[%clk 0:02:50]}  Nd7 {[%clk 0:02:43]} 11. Bh6 {[%clk 0:02:47]}  Bg7 {[%clk 0:02:39]} 12. Bxg7 {[%clk 0:02:40]}  Kxg7 {[%clk 0:02:39]} 13. f4 {[%clk 0:02:41]}  Qb6+ {[%clk 0:02:39]} 14. Rf2 {[%clk 0:02:41]}  e6 {[%clk 0:02:35]} 15. dxe6 {[%clk 0:02:37]}  fxe6 {[%clk 0:02:35]} 16. Qd2 {[%clk 0:02:34]}  Qd4 {[%clk 0:02:30]} 17. Ne2 {[%clk 0:02:30]}  Qf6 {[%clk 0:02:28]} 18. Bc2 {[%clk 0:02:27]}  Qxb2 {[%clk 0:02:08]} 19. Rd1 {[%clk 0:02:25]}  Nf6 {[%clk 0:02:02]} 20. Nd4 {[%clk 0:02:12]}  e5 {[%clk 0:01:53]} 21. Nb3 {[%clk 0:01:54]}  d5 {[%clk 0:01:41]} 22. cxd5 {[%clk 0:01:43]}  cxd5 {[%clk 0:01:38]} 23. Qb4 {[%clk 0:01:39]}  a5 {[%clk 0:01:22]} 24. Qd6 {[%clk 0:01:29]}  Ne8 {[%clk 0:00:57]} 25. Qxd5 {[%clk 0:01:15]}  exf4 {[%clk 0:00:51]} 26. e5 {[%clk 0:01:11]}  Qc3 {[%clk 0:00:43]} 27. Nd4 {[%clk 0:00:54]}  Ra6 {[%clk 0:00:34]} 28. Nb5 {[%clk 0:00:42]}  Qc6 {[%clk 0:00:30]} 29. Qd3 {[%clk 0:00:34]}  Bf5 {[%clk 0:00:28]} 30. Qb3 {[%clk 0:00:31]}  a4 {[%clk 0:00:26]} 31. Qb1 {[%clk 0:00:25]}  Rb6 {[%clk 0:00:24]} 32. Bxf5 {[%clk 0:00:05]}  Rxb5 {[%clk 0:00:23]} 33. Qd3 {[%clk 0:00:01]}  Rxf5 {[%clk 0:00:21]} 34. Rc2 {[%clk 0:00:01]}  Rc5 {[%clk 0:00:21]} 35. Rxc5 {[%clk 0:00:01]}  Qxc5+ {[%clk 0:00:20]} 36. Kh2 {[%clk 0:00:02]}  Qxe5 {[%clk 0:00:19]} 37. Qd7+ {[%clk 0:00:02]}  Rf7 {[%clk 0:00:19]} 38. Qxa4 {[%clk 0:00:02]}  f3+ {[%clk 0:00:19]} 39. g3 {[%clk 0:00:02]}  Qe2+ {[%clk 0:00:18]} 40. Kh1 {[%clk 0:00:01]}  Qg2# {[%clk 0:00:17]} 0-1


[Site "https://www.chess.com"]

[Event "Early Titled Tuesday Blitz | February 8 2022"]
[White "Agibileg, Uurtsaikh"]
[Black "Kostiukov, Alexandr"]
[WhiteFideId "4901606"]
[BlackFideId "14108100"]
[WhiteElo "2205"]
[BlackElo "2202"]
[Result "1/2-1/2"]
[Round "03"]
[TimeControl "180+1"]
[Date "2022.02.08"]
[WhiteClock "0:00:05"]
[BlackClock "0:00:27"]

1. d4 {[%clk 0:03:00]}  g6 {[%clk 0:02:45]} 2. e4 {[%clk 0:02:59]}  Bg7 {[%clk 0:02:45]} 3. Nc3 {[%clk 0:02:55]}  d6 {[%clk 0:02:45]} 4. Be3 {[%clk 0:02:55]}  e5 {[%clk 0:02:45]} 5. dxe5 {[%clk 0:02:53]}  dxe5 {[%clk 0:02:45]} 6. Qxd8+ {[%clk 0:02:53]}  Kxd8 {[%clk 0:02:46]} 7. O-O-O+ {[%clk 0:02:50]}  Nd7 {[%clk 0:02:46]} 8. h4 {[%clk 0:02:50]}  h5 {[%clk 0:02:44]} 9. Nf3 {[%clk 0:02:43]}  f6 {[%clk 0:02:41]} 10. Nd2 {[%clk 0:02:35]}  Bh6 {[%clk 0:02:40]} 11. Nc4 {[%clk 0:02:21]}  c6 {[%clk 0:02:15]} 12. Nd6 {[%clk 0:02:19]}  Ke7 {[%clk 0:02:12]} 13. Bc4 {[%clk 0:02:11]}  Bxe3+ {[%clk 0:02:07]} 14. fxe3 {[%clk 0:02:11]}  Nh6 {[%clk 0:02:07]} 15. Be2 {[%clk 0:01:44]}  a5 {[%clk 0:01:54]} 16. Na4 {[%clk 0:01:40]}  b5 {[%clk 0:01:49]} 17. Nxc8+ {[%clk 0:01:23]}  Raxc8 {[%clk 0:01:46]} 18. Rxd7+ {[%clk 0:01:24]}  Kxd7 {[%clk 0:01:46]} 19. Nb6+ {[%clk 0:01:25]}  Ke7 {[%clk 0:01:41]} 20. Nxc8+ {[%clk 0:01:26]}  Rxc8 {[%clk 0:01:41]} 21. Rd1 {[%clk 0:01:22]}  Rd8 {[%clk 0:01:36]} 22. Rxd8 {[%clk 0:01:21]}  Kxd8 {[%clk 0:01:36]} 23. Kd2 {[%clk 0:01:22]}  Ke7 {[%clk 0:01:35]} 24. a3 {[%clk 0:01:01]}  Kd6 {[%clk 0:01:31]} 25. b4 {[%clk 0:01:00]}  axb4 {[%clk 0:01:23]} 26. axb4 {[%clk 0:01:00]}  f5 {[%clk 0:01:17]} 27. Bd3 {[%clk 0:00:34]}  Ke6 {[%clk 0:01:03]} 28. Ke2 {[%clk 0:00:30]}  Ng4 {[%clk 0:01:01]} 29. exf5+ {[%clk 0:00:22]}  gxf5 {[%clk 0:01:01]} 30. Kd2 {[%clk 0:00:18]}  e4 {[%clk 0:00:59]} 31. Be2 {[%clk 0:00:18]}  Nf6 {[%clk 0:00:55]} 32. c4 {[%clk 0:00:17]}  bxc4 {[%clk 0:00:55]} 33. Bxc4+ {[%clk 0:00:18]}  Ke5 {[%clk 0:00:55]} 34. Be2 {[%clk 0:00:19]}  Nd5 {[%clk 0:00:54]} 35. Bxh5 {[%clk 0:00:19]}  Nxb4 {[%clk 0:00:54]} 36. Be8 {[%clk 0:00:19]}  c5 {[%clk 0:00:51]} 37. h5 {[%clk 0:00:19]}  Kf6 {[%clk 0:00:51]} 38. h6 {[%clk 0:00:12]}  Nd5 {[%clk 0:00:50]} 39. Bh5 {[%clk 0:00:11]}  c4 {[%clk 0:00:46]} 40. g3 {[%clk 0:00:09]}  c3+ {[%clk 0:00:45]} 41. Kc2 {[%clk 0:00:10]}  Nxe3+ {[%clk 0:00:44]} 42. Kxc3 {[%clk 0:00:11]}  Nf1 {[%clk 0:00:44]} 43. g4 {[%clk 0:00:11]}  fxg4 {[%clk 0:00:38]} 44. Bxg4 {[%clk 0:00:11]}  Ne3 {[%clk 0:00:38]} 45. Bh5 {[%clk 0:00:11]}  Nd5+ {[%clk 0:00:38]} 46. Kd4 {[%clk 0:00:11]}  Nf4 {[%clk 0:00:38]} 47. Be8 {[%clk 0:00:09]}  Ne6+ {[%clk 0:00:32]} 48. Kxe4 {[%clk 0:00:09]}  Ke7 {[%clk 0:00:31]} 49. Kf5 {[%clk 0:00:04]}  Nf8 {[%clk 0:00:29]} 50. Bh5 {[%clk 0:00:03]}  Nh7 {[%clk 0:00:28]} 51. Bg6 {[%clk 0:00:03]}  Nf8 {[%clk 0:00:28]} 52. Bh5 {[%clk 0:00:04]}  Nh7 {[%clk 0:00:28]} 53. Ke5 {[%clk 0:00:05]}  Nf6 {[%clk 0:00:27]} 54. Kf5 {[%clk 0:00:05]}  Nh7 {[%clk 0:00:27]} 1/2-1/2


[Site "https://www.chess.com"]

[Event "Early Titled Tuesday Blitz | February 8 2022"]
[White "Alekseev, Evgeny"]
[Black "Fier, Alexandr"]
[WhiteFideId "4138147"]
[BlackFideId "2107139"]
[WhiteElo "2589"]
[BlackElo "2569"]
[Result "1/2-1/2"]
[Round "03"]
[TimeControl "180+1"]
[Date "2022.02.08"]
[WhiteClock "0:00:04"]
[BlackClock "0:01:11"]

1. e4 {[%clk 0:02:58]}  Nf6 {[%clk 0:02:59]} 2. e5 {[%clk 0:02:58]}  Nd5 {[%clk 0:02:59]} 3. d4 {[%clk 0:02:58]}  d6 {[%clk 0:02:59]} 4. Nf3 {[%clk 0:02:58]}  g6 {[%clk 0:03:00]} 5. Bc4 {[%clk 0:02:57]}  Nb6 {[%clk 0:03:00]} 6. Bb3 {[%clk 0:02:57]}  Bg7 {[%clk 0:03:01]} 7. Ng5 {[%clk 0:02:57]}  e6 {[%clk 0:03:01]} 8. Qf3 {[%clk 0:02:57]}  Qe7 {[%clk 0:03:01]} 9. Ne4 {[%clk 0:02:49]}  dxe5 {[%clk 0:02:58]} 10. Bg5 {[%clk 0:02:49]}  Qb4+ {[%clk 0:02:50]} 11. c3 {[%clk 0:02:42]}  Qa5 {[%clk 0:02:49]} 12. Bf6 {[%clk 0:02:37]}  O-O {[%clk 0:02:49]} 13. Bxg7 {[%clk 0:02:37]}  Kxg7 {[%clk 0:02:50]} 14. Qf6+ {[%clk 0:02:35]}  Kg8 {[%clk 0:02:50]} 15. Qxe5 {[%clk 0:02:34]}  Qxe5 {[%clk 0:02:50]} 16. dxe5 {[%clk 0:02:35]}  a5 {[%clk 0:02:51]} 17. a4 {[%clk 0:02:32]}  Bd7 {[%clk 0:02:50]} 18. Nbd2 {[%clk 0:02:26]}  Bc6 {[%clk 0:02:51]} 19. f4 {[%clk 0:02:08]}  N8d7 {[%clk 0:02:43]} 20. Rf1 {[%clk 0:02:01]}  Nd5 {[%clk 0:02:15]} 21. Ke2 {[%clk 0:01:52]}  f6 {[%clk 0:02:13]} 22. exf6 {[%clk 0:01:48]}  N7xf6 {[%clk 0:02:11]} 23. Nxf6+ {[%clk 0:01:43]}  Rxf6 {[%clk 0:02:12]} 24. g3 {[%clk 0:01:42]}  e5 {[%clk 0:01:42]} 25. fxe5 {[%clk 0:01:08]}  Rxf1 {[%clk 0:01:42]} 26. Rxf1 {[%clk 0:01:04]}  Re8 {[%clk 0:01:42]} 27. Nf3 {[%clk 0:00:47]}  Kg7 {[%clk 0:01:41]} 28. Kd2 {[%clk 0:00:26]}  Nb6 {[%clk 0:01:35]} 29. Nd4 {[%clk 0:00:25]}  Bd5 {[%clk 0:01:30]} 30. Bxd5 {[%clk 0:00:23]}  Nxd5 {[%clk 0:01:31]} 31. e6 {[%clk 0:00:23]}  Re7 {[%clk 0:01:29]} 32. Kd3 {[%clk 0:00:20]}  c5 {[%clk 0:01:29]} 33. Nb3 {[%clk 0:00:18]}  Rxe6 {[%clk 0:01:20]} 34. Nxc5 {[%clk 0:00:11]}  Rb6 {[%clk 0:01:21]} 35. Kd4 {[%clk 0:00:08]}  Nf6 {[%clk 0:01:20]} 36. Rf2 {[%clk 0:00:06]}  Rd6+ {[%clk 0:01:19]} 37. Kc4 {[%clk 0:00:06]}  b6 {[%clk 0:01:20]} 38. Nb3 {[%clk 0:00:04]}  Ng4 {[%clk 0:01:20]} 39. Re2 {[%clk 0:00:05]}  Nf6 {[%clk 0:01:12]} 40. Nd4 {[%clk 0:00:04]}  Nd7 {[%clk 0:01:13]} 41. Kb5 {[%clk 0:00:04]}  Kf6 {[%clk 0:01:12]} 42. Rf2+ {[%clk 0:00:04]}  Ke7 {[%clk 0:01:11]} 43. Re2+ {[%clk 0:00:05]}  Kf6 {[%clk 0:01:11]} 44. Rf2+ {[%clk 0:00:04]}  Ke7 {[%clk 0:01:11]} 45. Re2+ {[%clk 0:00:04]}  Kf6 {[%clk 0:01:11]} 1/2-1/2


[Site "https://www.chess.com"]

[Event "Early Titled Tuesday Blitz | February 8 2022"]
[White "Alinasab, Mobina"]
[Black "parintele_chess"]
[WhiteFideId "12528897"]
[WhiteElo "2061"]
[BlackElo "2239"]
[Result "1-0"]
[Round "03"]
[TimeControl "180+1"]
[Date "2022.02.08"]
[WhiteClock "0:00:57"]
[BlackClock "0:00:06"]

1. e4 {[%clk 0:03:00]}  e5 {[%clk 0:02:58]} 2. Nf3 {[%clk 0:02:55]}  Nc6 {[%clk 0:02:58]} 3. Bb5 {[%clk 0:02:54]}  a6 {[%clk 0:02:58]} 4. Ba4 {[%clk 0:02:54]}  Nf6 {[%clk 0:02:58]} 5. O-O {[%clk 0:02:53]}  Be7 {[%clk 0:02:59]} 6. Re1 {[%clk 0:02:52]}  b5 {[%clk 0:02:59]} 7. Bb3 {[%clk 0:02:52]}  O-O {[%clk 0:02:59]} 8. c3 {[%clk 0:02:52]}  d5 {[%clk 0:02:59]} 9. d4 {[%clk 0:02:50]}  Nxe4 {[%clk 0:02:48]} 10. dxe5 {[%clk 0:02:49]}  Bc5 {[%clk 0:02:45]} 11. Qxd5 {[%clk 0:02:27]}  Bxf2+ {[%clk 0:02:30]} 12. Kf1 {[%clk 0:02:26]}  Bxe1 {[%clk 0:02:23]} 13. Qxe4 {[%clk 0:02:13]}  Bb7 {[%clk 0:02:05]} 14. Qxe1 {[%clk 0:02:09]}  Qd3+ {[%clk 0:01:54]} 15. Qe2 {[%clk 0:02:07]}  Qf5 {[%clk 0:01:50]} 16. Bc2 {[%clk 0:02:04]}  Qe6 {[%clk 0:01:50]} 17. Bxh7+ {[%clk 0:02:01]}  Kh8 {[%clk 0:01:50]} 18. Kg1 {[%clk 0:01:55]}  Nxe5 {[%clk 0:01:45]} 19. Qxe5 {[%clk 0:01:45]}  Bxf3 {[%clk 0:01:36]} 20. Qxe6 {[%clk 0:01:43]}  fxe6 {[%clk 0:01:27]} 21. gxf3 {[%clk 0:01:36]}  Kxh7 {[%clk 0:01:26]} 22. Nd2 {[%clk 0:01:36]}  Rad8 {[%clk 0:01:23]} 23. Kf2 {[%clk 0:01:35]}  Rd3 {[%clk 0:01:18]} 24. Ke2 {[%clk 0:01:34]}  Rfd8 {[%clk 0:01:18]} 25. a4 {[%clk 0:01:31]}  R3d5 {[%clk 0:00:51]} 26. axb5 {[%clk 0:01:30]}  axb5 {[%clk 0:00:51]} 27. Ra7 {[%clk 0:01:26]}  Rh5 {[%clk 0:00:49]} 28. Rxc7 {[%clk 0:01:21]}  Rxh2+ {[%clk 0:00:48]} 29. Kd1 {[%clk 0:01:21]}  Ra8 {[%clk 0:00:35]} 30. Kc2 {[%clk 0:01:16]}  Rh1 {[%clk 0:00:27]} 31. Ne4 {[%clk 0:01:14]}  Rf1 {[%clk 0:00:24]} 32. Be3 {[%clk 0:01:07]}  Kg6 {[%clk 0:00:20]} 33. Bd4 {[%clk 0:01:05]}  Rxf3 {[%clk 0:00:18]} 34. Rxg7+ {[%clk 0:01:05]}  Kf5 {[%clk 0:00:17]} 35. Nd6+ {[%clk 0:01:05]}  Kf4 {[%clk 0:00:16]} 36. Nxb5 {[%clk 0:01:02]}  e5 {[%clk 0:00:10]} 37. Rf7+ {[%clk 0:01:02]}  Ke4 {[%clk 0:00:08]} 38. Rxf3 {[%clk 0:01:03]}  Kxf3 {[%clk 0:00:07]} 39. Bxe5 {[%clk 0:01:03]}  Ra5 {[%clk 0:00:07]} 40. c4 {[%clk 0:01:03]}  Ke4 {[%clk 0:00:07]} 41. Bc3 {[%clk 0:01:02]}  Ra4 {[%clk 0:00:06]} 42. Kb3 {[%clk 0:01:02]}  Ra8 {[%clk 0:00:07]} 43. Kb4 {[%clk 0:01:01]}  Rb8 {[%clk 0:00:07]} 44. b3 {[%clk 0:01:01]}  Kd3 {[%clk 0:00:06]} 45. Kc5 {[%clk 0:00:57]}  Rxb5+ {[%clk 0:00:05]} 46. cxb5 {[%clk 0:00:56]}  Kxc3 {[%clk 0:00:06]} 47. b6 {[%clk 0:00:56]}  Kxb3 {[%clk 0:00:05]} 48. b7 {[%clk 0:00:57]}  Kc3 {[%clk 0:00:06]} 49. b8=Q {[%clk 0:00:57]} 1-0


[Site "https://www.chess.com"]

[Event "Early Titled Tuesday Blitz | February 8 2022"]
[White "Arabidze, Meri"]
[Black "Jakubowska, Anna"]
[WhiteFideId "13604040"]
[BlackFideId "1121952"]
[WhiteElo "2329"]
[BlackElo "1924"]
[Result "1-0"]
[Round "03"]
[TimeControl "180+1"]
[Date "2022.02.08"]
[WhiteClock "0:01:47"]
[BlackClock "0:01:19"]

1. Nf3 {[%clk 0:02:55]}  d5 {[%clk 0:02:58]} 2. e3 {[%clk 0:02:54]}  Nf6 {[%clk 0:02:58]} 3. b3 {[%clk 0:02:54]}  g6 {[%clk 0:02:55]} 4. Bb2 {[%clk 0:02:54]}  Bg7 {[%clk 0:02:56]} 5. c4 {[%clk 0:02:55]}  c6 {[%clk 0:02:54]} 6. Be2 {[%clk 0:02:53]}  O-O {[%clk 0:02:54]} 7. O-O {[%clk 0:02:54]}  Bg4 {[%clk 0:02:53]} 8. h3 {[%clk 0:02:53]}  Bxf3 {[%clk 0:02:53]} 9. Bxf3 {[%clk 0:02:54]}  Nbd7 {[%clk 0:02:52]} 10. d4 {[%clk 0:02:53]}  Re8 {[%clk 0:02:52]} 11. Nc3 {[%clk 0:02:53]}  dxc4 {[%clk 0:02:51]} 12. bxc4 {[%clk 0:02:52]}  e5 {[%clk 0:02:51]} 13. Qb3 {[%clk 0:02:42]}  Qb6 {[%clk 0:02:40]} 14. Rfd1 {[%clk 0:02:41]}  e4 {[%clk 0:02:27]} 15. Be2 {[%clk 0:02:41]}  c5 {[%clk 0:02:18]} 16. Na4 {[%clk 0:02:39]}  Qxb3 {[%clk 0:02:18]} 17. axb3 {[%clk 0:02:40]}  cxd4 {[%clk 0:02:17]} 18. exd4 {[%clk 0:02:30]}  e3 {[%clk 0:02:16]} 19. Bf3 {[%clk 0:02:25]}  exf2+ {[%clk 0:02:13]} 20. Kxf2 {[%clk 0:02:26]}  Ne4+ {[%clk 0:02:13]} 21. Kg1 {[%clk 0:02:23]}  Rab8 {[%clk 0:02:08]} 22. Re1 {[%clk 0:02:17]}  f5 {[%clk 0:01:59]} 23. Rad1 {[%clk 0:02:12]}  b5 {[%clk 0:01:58]} 24. cxb5 {[%clk 0:02:05]}  Rxb5 {[%clk 0:01:57]} 25. Be2 {[%clk 0:02:01]}  Rbb8 {[%clk 0:01:48]} 26. Bc4+ {[%clk 0:02:01]}  Kh8 {[%clk 0:01:46]} 27. Ba3 {[%clk 0:01:57]}  Rbd8 {[%clk 0:01:29]} 28. Nc5 {[%clk 0:01:54]}  Bxd4+ {[%clk 0:01:24]} 29. Rxd4 {[%clk 0:01:53]}  Ndxc5 {[%clk 0:01:24]} 30. Rxd8 {[%clk 0:01:46]}  Rxd8 {[%clk 0:01:19]} 31. Bb2+ {[%clk 0:01:47]} 1-0


[Site "https://www.chess.com"]

[Event "Early Titled Tuesday Blitz | February 8 2022"]
[White "Araujo Filho, Luiz Antonio Coel"]
[Black "Ozkan, Taha"]
[WhiteFideId "2130661"]
[BlackFideId "34577173"]
[WhiteElo "2223"]
[BlackElo "2024"]
[Result "0-1"]
[Round "03"]
[TimeControl "180+1"]
[Date "2022.02.08"]
[WhiteClock "0:00:18"]
[BlackClock "0:01:36"]

1. d4 {[%clk 0:03:00]}  d5 {[%clk 0:02:59]} 2. Nf3 {[%clk 0:03:00]}  c6 {[%clk 0:02:59]} 3. e3 {[%clk 0:02:58]}  Bg4 {[%clk 0:02:59]} 4. Nbd2 {[%clk 0:02:59]}  e6 {[%clk 0:03:00]} 5. b3 {[%clk 0:03:00]}  Nf6 {[%clk 0:03:00]} 6. Bb2 {[%clk 0:03:00]}  Bd6 {[%clk 0:03:00]} 7. Be2 {[%clk 0:02:58]}  O-O {[%clk 0:03:00]} 8. O-O {[%clk 0:02:59]}  Nbd7 {[%clk 0:03:00]} 9. c4 {[%clk 0:02:59]}  Qe7 {[%clk 0:02:59]} 10. Ne5 {[%clk 0:02:59]}  Bxe2 {[%clk 0:03:00]} 11. Qxe2 {[%clk 0:03:00]}  Ne4 {[%clk 0:02:50]} 12. Nxe4 {[%clk 0:02:47]}  dxe4 {[%clk 0:02:51]} 13. Nxd7 {[%clk 0:02:47]}  Qxd7 {[%clk 0:02:50]} 14. Rfd1 {[%clk 0:02:41]}  Rad8 {[%clk 0:02:49]} 15. Rac1 {[%clk 0:02:41]}  Qc7 {[%clk 0:02:49]} 16. g3 {[%clk 0:02:40]}  f5 {[%clk 0:02:49]} 17. Qc2 {[%clk 0:02:37]}  Qe7 {[%clk 0:02:47]} 18. d5 {[%clk 0:02:23]}  exd5 {[%clk 0:02:46]} 19. cxd5 {[%clk 0:02:23]}  c5 {[%clk 0:02:45]} 20. a3 {[%clk 0:02:09]}  b6 {[%clk 0:02:46]} 21. Qe2 {[%clk 0:01:55]}  Rd7 {[%clk 0:02:44]} 22. f4 {[%clk 0:01:48]}  exf3 {[%clk 0:02:42]} 23. Qxf3 {[%clk 0:01:49]}  Rdd8 {[%clk 0:02:42]} 24. Rd3 {[%clk 0:01:43]}  Rde8 {[%clk 0:02:42]} 25. Kf2 {[%clk 0:01:41]}  Qe4 {[%clk 0:02:41]} 26. Rcd1 {[%clk 0:01:35]}  Re7 {[%clk 0:02:24]} 27. R1d2 {[%clk 0:01:29]}  Rfe8 {[%clk 0:02:23]} 28. Rd1 {[%clk 0:01:27]}  Rd7 {[%clk 0:02:04]} 29. R1d2 {[%clk 0:01:26]}  Qxf3+ {[%clk 0:01:59]} 30. Kxf3 {[%clk 0:01:25]}  Kf7 {[%clk 0:01:59]} 31. Rd1 {[%clk 0:01:24]}  Be5 {[%clk 0:02:00]} 32. Bxe5 {[%clk 0:00:39]}  Rxe5 {[%clk 0:01:40]} 33. Kf4 {[%clk 0:00:39]}  Kf6 {[%clk 0:01:38]} 34. h4 {[%clk 0:00:40]}  Re4+ {[%clk 0:01:37]} 35. Kf3 {[%clk 0:00:39]}  g6 {[%clk 0:01:36]} 36. Rc1 {[%clk 0:00:35]}  Rd6 {[%clk 0:01:37]} 37. Rb1 {[%clk 0:00:28]}  Ke5 {[%clk 0:01:37]} 38. Rbd1 {[%clk 0:00:27]}  c4 {[%clk 0:01:36]} 39. bxc4 {[%clk 0:00:27]}  Rxc4 {[%clk 0:01:37]} 40. R1d2 {[%clk 0:00:18]}  Rc5 {[%clk 0:01:36]} 0-1


[Site "https://www.chess.com"]

[Event "Early Titled Tuesday Blitz | February 8 2022"]
[White "Araujo Sanchez, Josue"]
[Black "Kujawski, Adam"]
[WhiteFideId "6416896"]
[BlackFideId "1100920"]
[WhiteElo "2357"]
[BlackElo "2053"]
[Result "1-0"]
[Round "03"]
[TimeControl "180+1"]
[Date "2022.02.08"]
[WhiteClock "0:00:10"]
[BlackClock "0:00:09"]

1. e4 {[%clk 0:02:48]}  e5 {[%clk 0:02:59]} 2. Nf3 {[%clk 0:02:47]}  Nc6 {[%clk 0:02:59]} 3. Bb5 {[%clk 0:02:46]}  a6 {[%clk 0:02:59]} 4. Bxc6 {[%clk 0:02:43]}  dxc6 {[%clk 0:02:59]} 5. Qe2 {[%clk 0:02:44]}  Bc5 {[%clk 0:02:58]} 6. Nxe5 {[%clk 0:02:42]}  Nf6 {[%clk 0:02:51]} 7. d3 {[%clk 0:02:38]}  O-O {[%clk 0:02:36]} 8. O-O {[%clk 0:01:15]}  Re8 {[%clk 0:02:33]} 9. Nf3 {[%clk 0:01:12]}  Bg4 {[%clk 0:02:29]} 10. Bg5 {[%clk 0:01:11]}  h6 {[%clk 0:02:17]} 11. Bh4 {[%clk 0:01:03]}  g5 {[%clk 0:02:17]} 12. Bg3 {[%clk 0:01:02]}  Nh5 {[%clk 0:02:17]} 13. Nbd2 {[%clk 0:01:01]}  Nf4 {[%clk 0:02:03]} 14. Bxf4 {[%clk 0:01:00]}  gxf4 {[%clk 0:02:04]} 15. h3 {[%clk 0:01:00]}  Bh5 {[%clk 0:02:04]} 16. Kh2 {[%clk 0:01:00]}  Kh7 {[%clk 0:01:57]} 17. c3 {[%clk 0:00:58]}  f5 {[%clk 0:01:48]} 18. e5 {[%clk 0:00:56]}  Bb6 {[%clk 0:01:24]} 19. d4 {[%clk 0:00:48]}  c5 {[%clk 0:01:20]} 20. dxc5 {[%clk 0:00:48]}  Bxc5 {[%clk 0:01:19]} 21. Qc4 {[%clk 0:00:48]}  Bb6 {[%clk 0:01:09]} 22. Qxf4 {[%clk 0:00:40]}  Qd7 {[%clk 0:00:56]} 23. Nc4 {[%clk 0:00:37]}  Rf8 {[%clk 0:00:35]} 24. Rad1 {[%clk 0:00:27]}  Qe7 {[%clk 0:00:34]} 25. Nxb6 {[%clk 0:00:25]}  cxb6 {[%clk 0:00:35]} 26. Rd6 {[%clk 0:00:25]}  Bg6 {[%clk 0:00:30]} 27. Rfd1 {[%clk 0:00:21]}  Rad8 {[%clk 0:00:28]} 28. e6 {[%clk 0:00:19]}  Qf6 {[%clk 0:00:22]} 29. Rd7+ {[%clk 0:00:17]}  Rxd7 {[%clk 0:00:18]} 30. Rxd7+ {[%clk 0:00:18]}  Kg8 {[%clk 0:00:18]} 31. Qxh6 {[%clk 0:00:17]}  Re8 {[%clk 0:00:14]} 32. Nd4 {[%clk 0:00:15]}  f4 {[%clk 0:00:13]} 33. f3 {[%clk 0:00:13]}  b5 {[%clk 0:00:11]} 34. h4 {[%clk 0:00:11]}  Rxe6 {[%clk 0:00:08]} 35. Nxe6 {[%clk 0:00:10]}  Qxe6 {[%clk 0:00:09]} 36. Qg7# {[%clk 0:00:10]} 1-0


[Site "https://www.chess.com"]

[Event "Early Titled Tuesday Blitz | February 8 2022"]
[White "Atanasov, Anthony"]
[Black "Triapishko, Alexandr"]
[WhiteFideId "2623897"]
[BlackFideId "14122286"]
[WhiteElo "2540"]
[BlackElo "2830"]
[Result "0-1"]
[Round "03"]
[TimeControl "180+1"]
[Date "2022.02.08"]
[WhiteClock "0:00:20"]
[BlackClock "0:00:27"]

1. d4 {[%clk 0:03:00]}  d5 {[%clk 0:02:52]} 2. Bf4 {[%clk 0:02:57]}  c5 {[%clk 0:02:51]} 3. e3 {[%clk 0:02:56]}  Nc6 {[%clk 0:02:52]} 4. Nf3 {[%clk 0:02:55]}  cxd4 {[%clk 0:02:48]} 5. exd4 {[%clk 0:02:55]}  Bg4 {[%clk 0:02:49]} 6. Nbd2 {[%clk 0:02:52]}  e6 {[%clk 0:02:49]} 7. c3 {[%clk 0:02:50]}  Bd6 {[%clk 0:02:49]} 8. Bxd6 {[%clk 0:02:48]}  Qxd6 {[%clk 0:02:50]} 9. Bd3 {[%clk 0:02:45]}  Nge7 {[%clk 0:02:49]} 10. h3 {[%clk 0:02:46]}  Bh5 {[%clk 0:02:48]} 11. O-O {[%clk 0:02:46]}  O-O {[%clk 0:02:40]} 12. Re1 {[%clk 0:02:40]}  f6 {[%clk 0:02:22]} 13. Qe2 {[%clk 0:02:25]}  e5 {[%clk 0:02:20]} 14. dxe5 {[%clk 0:02:20]}  fxe5 {[%clk 0:02:21]} 15. Rad1 {[%clk 0:02:17]}  Qf6 {[%clk 0:02:13]} 16. g4 {[%clk 0:02:00]}  Bg6 {[%clk 0:02:04]} 17. Nxe5 {[%clk 0:01:58]}  Nxe5 {[%clk 0:02:00]} 18. Qxe5 {[%clk 0:01:53]}  Qxf2+ {[%clk 0:01:22]} 19. Kh1 {[%clk 0:01:49]}  Bxd3 {[%clk 0:01:12]} 20. Qxe7 {[%clk 0:01:47]}  Bc2 {[%clk 0:01:08]} 21. Re2 {[%clk 0:01:04]}  Qg3 {[%clk 0:00:42]} 22. Rg1 {[%clk 0:00:52]}  Qxh3+ {[%clk 0:00:31]} 23. Rh2 {[%clk 0:00:53]}  Be4+ {[%clk 0:00:27]} 24. Nxe4 {[%clk 0:00:45]}  Qf3+ {[%clk 0:00:27]} 25. Rhg2 {[%clk 0:00:39]}  dxe4 {[%clk 0:00:28]} 26. Qe6+ {[%clk 0:00:34]}  Kh8 {[%clk 0:00:27]} 27. Kh2 {[%clk 0:00:20]}  Rf6 {[%clk 0:00:27]} 0-1


[Site "https://www.chess.com"]